fUST/lending_fUST_20240726
["ID","MTS","AMOUNT","RATE_DAILY","PERIOD"]
[333191143,1721931058365,-500.0,0.00014246,2]
[333191144,1721931058375,-663.6,0.00014246,2]
[333191145,1721931058384,-500.0,0.00014246,2]
[333191146,1721931058393,-500.0,0.00014246,2]
[333191147,1721931058404,-500.0,0.00014246,2]
[333191148,1721931058415,-500.0,0.00014246,2]
[333191149,1721931058424,-500.0,0.00014246,2]
[333191150,1721931058433,-500.0,0.00014246,2]
[333191151,1721931058442,-500.0,0.00014246,2]
[333191152,1721931058451,-695.74,0.00014246,2]
[333191153,1721931058461,-628.42,0.00014246,2]
[333191154,1721931058470,-500.0,0.00014246,2]
[333191155,1721931058480,-500.0,0.00014246,2]
[333191156,1721931058490,-500.0,0.00014246,2]
[333191157,1721931058499,-1249.69,0.00014246,2]
[333191158,1721931058508,-500.0,0.00014246,2]
[333191159,1721931058517,-500.0,0.00014246,2]
[333191160,1721931058526,-500.0,0.00014246,2]
[333191161,1721931058536,-500.0,0.00014246,2]
[333191162,1721931058545,-500.0,0.00014246,2]
[333191163,1721931058554,-819.19,0.00014246,2]
[333191164,1721931058564,-500.0,0.00014246,2]
[333191165,1721931058574,-1308.36,0.00014246,2]
[333191166,1721931058583,-1310.28,0.00014246,2]
[333191167,1721931058592,-927.14,0.00014246,2]
[333191168,1721931058601,-500.0,0.00014246,2]
[333191169,1721931058610,-844.66,0.00014246,2]
[333191170,1721931058620,-588.69,0.00014246,2]
[333191171,1721931058629,-1561.37,0.00014246,2]
[333191172,1721931058638,-500.0,0.00014246,2]
[333191173,1721931058647,-792.7,0.00014246,2]
[333191174,1721931058658,-778.19,0.00014246,2]
[333191175,1721931058668,-500.0,0.00014246,2]
[333191176,1721931058677,-1207.85,0.00014246,2]
[333191177,1721931058687,-637.6,0.00014246,2]
[333191178,1721931058696,-500.0,0.00014246,2]
[333191179,1721931058706,-500.0,0.00014246,2]
[333191180,1721931058716,-500.0,0.00014246,2]
[333191181,1721931058726,-1245.58,0.00014246,2]
[333191182,1721931058734,-500.0,0.00014246,2]
[333191183,1721931058743,-500.0,0.00014246,2]
[333191184,1721931058753,-519.08,0.00014246,2]
[333191185,1721931058762,-500.0,0.00014246,2]
[333191186,1721931058771,-565.87,0.00014246,2]
[333191187,1721931058780,-500.0,0.00014246,2]
[333191188,1721931058789,-500.0,0.00014246,2]
[333191189,1721931058799,-500.0,0.00014246,2]
[333191190,1721931058807,-650.68,0.00014246,2]
[333191191,1721931058817,-500.0,0.00014246,2]
[333191192,1721931058826,-500.0,0.00014246,2]
[333191193,1721931058839,-215.68689553,0.00014246,2]
[333191194,1721931058848,-500.0,0.00014246,2]
[333191195,1721931058857,-533.67,0.00014246,2]
[333191196,1721931058866,-500.0,0.00014246,2]
[333191197,1721931058876,-1169.62,0.00014246,2]
[333191198,1721931058886,-536.23,0.00014246,2]
[333191199,1721931059021,-530.02,0.00014246,2]
[333191200,1721931059031,-934.43,0.00014246,2]
[333191201,1721931059040,-151.0,0.00014246,2]
[333191202,1721931059049,-211.640192,0.00014246,2]
[333191203,1721931059059,-1064.49,0.00014246,2]
[333191204,1721931059068,-500.0,0.00014246,2]
[333191205,1721931059077,-500.0,0.00014246,2]
[333191206,1721931059087,-1150.44,0.00014246,2]
[333191207,1721931059097,-500.0,0.00014246,2]
[333191208,1721931059106,-847.0,0.00014246,2]
[333191209,1721931059116,-500.0,0.00014246,2]
[333191210,1721931059126,-791.4,0.00014246,2]
[333191211,1721931059135,-500.0,0.00014246,2]
[333191212,1721931059144,-331.28129,0.00014246,2]
[333191213,1721931059155,-1018.83,0.00014246,2]
[333191214,1721931059164,-331.28129,0.00014246,2]
[333191215,1721931059174,-500.0,0.00014246,2]
[333191216,1721931059183,-331.28129,0.00014246,2]
[333191217,1721931059192,-331.28129,0.00014246,2]
[333191218,1721931059202,-500.0,0.00014246,2]
[333191219,1721931059211,-830.85,0.00014246,2]
[333191220,1721931059221,-500.0,0.00014246,2]
[333191221,1721931059230,-1102.94,0.00014246,2]
[333191222,1721931059240,-765.27,0.00014246,2]
[333191223,1721931059250,-151.0,0.00014246,2]
[333191224,1721931059259,-151.0,0.00014246,2]
[333191225,1721931059268,-1019.86,0.00014246,2]
[333191226,1721931059277,-151.0,0.00014246,2]
[333191227,1721931059287,-151.0,0.00014246,2]
[333191228,1721931059296,-500.0,0.00014246,2]
[333191229,1721931059305,-533.79,0.00014246,2]
[333191230,1721931059315,-867.66,0.00014246,2]
[333191231,1721931059324,-500.0,0.00014246,2]
[333191232,1721931059333,-500.0,0.00014246,2]
[333191233,1721931059342,-604.75,0.00014246,2]
[333191234,1721931059351,-521.26,0.00014246,2]
[333191235,1721931059361,-2199.43,0.00014246,2]
[333191236,1721931059371,-151.0,0.00014246,2]
[333191237,1721931059380,-151.0,0.00014246,2]
[333191238,1721931059389,-500.0,0.00014246,2]
[333191239,1721931059399,-500.0,0.00014246,2]
[333191240,1721931059410,-500.0,0.00014246,2]
[333191241,1721931059419,-500.0,0.00014246,2]
[333191242,1721931059428,-826.53,0.00014246,2]
[333191243,1721931059438,-2013.94,0.00014246,2]
[333191244,1721931059447,-1897.6,0.00014246,2]
[333191245,1721931059457,-500.0,0.00014246,2]
[333191246,1721931059466,-500.0,0.00014246,2]
[333191247,1721931059476,-1006.17,0.00014246,2]
[333191248,1721931059485,-500.0,0.00014246,2]
[333191249,1721931059495,-1006.87,0.00014246,2]
[333191250,1721931059504,-1774.58,0.00014246,2]
[333191251,1721931059513,-2659.08,0.00014246,2]
[333191252,1721931059524,-151.0,0.00014246,2]
[333191253,1721931059533,-151.0,0.00014246,2]
[333191254,1721931059542,-1143.6516864,0.00014246,2]
[333191255,1721931059551,-1517.91,0.00014246,2]
[333191256,1721931059560,-500.0,0.00014246,2]
[333191257,1721931059569,-2835.69,0.00014246,2]
[333191258,1721931059579,-372.862802,0.00014246,2]
[333191259,1721931059588,-372.862802,0.00014246,2]
[333191260,1721931059598,-694.9,0.00014246,2]
[333191261,1721931059607,-372.862802,0.00014246,2]
[333191262,1721931059617,-372.862802,0.00014246,2]
[333191263,1721931059627,-500.0,0.00014246,2]
[333191264,1721931059636,-151.0,0.00014246,2]
[333191265,1721931059646,-151.0,0.00014246,2]
[333191266,1721931059657,-500.0,0.00014246,2]
[333191267,1721931059666,-500.0,0.00014246,2]
[333191268,1721931059675,-500.0,0.00014246,2]
[333191269,1721931059684,-995.23,0.00014246,2]
[333191270,1721931059693,-1627.17,0.00014246,2]
[333191271,1721931059702,-864.05,0.00014246,2]
[333191272,1721931059711,-500.0,0.00014246,2]
[333191273,1721931059721,-10076.05,0.00014246,2]
[333191274,1721931059730,-500.0,0.00014246,2]
[333191275,1721931059739,-500.0,0.00014246,2]
[333191276,1721931059747,-4258.11,0.00014246,2]
[333191277,1721931059758,-500.0,0.00014246,2]
[333191278,1721931059767,-500.0,0.00014246,2]
[333191279,1721931059778,-6811.63,0.00014246,2]
[333191280,1721931059787,-787.92,0.00014246,2]
[333191281,1721931059797,-1908.57,0.00014246,2]
[333191282,1721931059807,-500.0,0.00014246,2]
[333191283,1721931059816,-1810.53,0.00014246,2]
[333191284,1721931059826,-500.0,0.00014246,2]
[333191285,1721931059838,-1030.22,0.00014246,2]
[333191286,1721931059848,-1383.61,0.00014246,2]
[333191287,1721931059857,-502.74,0.00014246,2]
[333191288,1721931059866,-500.0,0.00014246,2]
[333191289,1721931059877,-1700.32,0.00014246,2]
[333191290,1721931059886,-500.0,0.00014246,2]
[333191291,1721931059895,-8543.81,0.00014246,2]
[333191292,1721931059908,-500.0,0.00014246,2]
[333191293,1721931059920,-500.0,0.00014246,2]
[333191294,1721931059933,-500.0,0.00014246,2]
[333191295,1721931059943,-500.0,0.00014246,2]
[333191296,1721931059951,-500.0,0.00014246,2]
[333191297,1721931059961,-500.0,0.00014246,2]
[333191298,1721931059970,-500.0,0.00014246,2]
[333191299,1721931059979,-151.0,0.00014246,2]
[333191300,1721931059990,-151.0,0.00014246,2]
[333191301,1721931059999,-887.29,0.00014246,2]
[333191302,1721931060009,-500.0,0.00014246,2]
[333191303,1721931060019,-500.0,0.00014246,2]
[333191304,1721931060031,-500.0,0.00014246,2]
[333191305,1721931060041,-1106.02,0.00014246,2]
[333191306,1721931060051,-500.0,0.00014246,2]
[333191307,1721931060061,-500.0,0.00014246,2]
[333191308,1721931060071,-500.0,0.00014246,2]
[333191309,1721931060081,-1814.13,0.00014246,2]
[333191310,1721931060090,-672.42,0.00014246,2]
[333191311,1721931060100,-616.66,0.00014246,2]
[333191312,1721931060109,-228.60957987,0.00014246,2]
[333191313,1721931060119,-784.77,0.00014246,2]
[333191314,1721931060129,-500.0,0.00014246,2]
[333191315,1721931060139,-909.05,0.00014246,2]
[333191316,1721931060149,-983.58,0.00014246,2]
[333191317,1721931060162,-4954.07,0.00014246,2]
[333191318,1721931060171,-500.0,0.00014246,2]
[333191319,1721931060181,-1328.52,0.00014246,2]
[333191320,1721931060190,-500.0,0.00014246,2]
[333191321,1721931060200,-1406.23,0.00014246,2]
[333191322,1721931060210,-500.0,0.00014246,2]
[333191323,1721931060220,-500.0,0.00014246,2]
[333191324,1721931060230,-872.91,0.00014246,2]
[333191325,1721931060240,-1478.62,0.00014246,2]
[333191326,1721931060250,-500.0,0.00014246,2]
[333191327,1721931060260,-1562.6,0.00014246,2]
[333191328,1721931060269,-151.0,0.00014246,2]
[333191329,1721931060279,-151.0,0.00014246,2]
[333191330,1721931060289,-739.37,0.00014246,2]
[333191331,1721931060299,-500.0,0.00014246,2]
[333191332,1721931060309,-3164.36,0.00014246,2]
[333191333,1721931060319,-879.44,0.00014246,2]
[333191334,1721931060329,-199.285594,0.00014246,2]
[333191335,1721931060339,-199.285594,0.00014246,2]
[333191336,1721931060348,-500.0,0.00014246,2]
[333191337,1721931060358,-500.0,0.00014246,2]
[333191338,1721931060368,-199.285594,0.00014246,2]
[333191339,1721931060378,-199.285594,0.00014246,2]
[333191340,1721931060388,-1692.12,0.00014246,2]
[333191341,1721931060398,-1068.33,0.00014246,2]
[333191342,1721931060412,-151.0,0.00014246,2]
[333191343,1721931060422,-500.0,0.00014246,2]
[333191344,1721931060432,-151.0,0.00014246,2]
[333191345,1721931060441,-500.0,0.00014246,2]
[333191346,1721931060451,-500.0,0.00014246,2]
[333191347,1721931060462,-2637.13,0.00014246,2]
[333191348,1721931060471,-500.0,0.00014246,2]
[333191349,1721931060481,-500.0,0.00014246,2]
[333191350,1721931060491,-1293.26,0.00014246,2]
[333191351,1721931060500,-504.18,0.00014246,2]
[333191352,1721931060509,-151.0,0.00014246,2]
[333191353,1721931060519,-151.0,0.00014246,2]
[333191354,1721931060528,-1650.85,0.00014246,2]
[333191355,1721931060538,-581.01,0.00014246,2]
[333191356,1721931060547,-500.0,0.00014246,2]
[333191357,1721931060557,-500.0,0.00014246,2]
[333191358,1721931060567,-500.0,0.00014246,2]
[333191359,1721931060576,-500.0,0.00014246,2]
[333191360,1721931060585,-1024.93,0.00014246,2]
[333191361,1721931060595,-500.0,0.00014246,2]
[333191362,1721931060604,-2897.63,0.00014246,2]
[333191363,1721931060613,-500.0,0.00014246,2]
[333191364,1721931060622,-500.0,0.00014246,2]
[333191365,1721931060631,-500.0,0.00014246,2]
[333191366,1721931060641,-548.72129079,0.00014246,2]
[333191367,1721931060650,-1463.63,0.00014246,2]
[333191368,1721931060662,-775.42,0.00014246,2]
[333191369,1721931060671,-995.83,0.00014246,2]
[333191370,1721931060681,-500.0,0.00014246,2]
[333191371,1721931060690,-289.934664,0.00014246,2]
[333191372,1721931060699,-635.31,0.00014246,2]
[333191373,1721931060709,-500.0,0.00014246,2]
[333191374,1721931060718,-750.0,0.00014247,2]
[333191375,1721931060727,-161.642245,0.00014267,2]
[333191376,1721931060736,-201.615092,0.00014267,2]
[333191377,1721931060746,-161.642245,0.00014267,2]
[333191378,1721931060755,-167.069487,0.00014267,2]
[333191379,1721931060764,-187.957261,0.00014267,2]
[333191380,1721931060773,-161.642245,0.00014267,2]
[333191381,1721931060782,-161.642245,0.00014267,2]
[333191382,1721931060791,-154.72922386,0.00014352,2]
[333191383,1721931060801,-620.09495722,0.0001447,2]
[333191384,1721931060810,-151.0,0.0001447,2]
[333191385,1721931060819,-151.0,0.0001452,2]
[333191386,1721931060828,-151.0,0.0001452,2]
[333191387,1721931060841,-151.0,0.0001452,2]
[333191388,1721931060850,-151.0,0.0001452,2]
[333191389,1721931060859,-500.0,0.0001452,2]
[333191390,1721931060868,-601.47,0.0001452,2]
[333191391,1721931060878,-500.0,0.0001452,2]
[333191392,1721931060888,-500.0,0.0001452,2]
[333191393,1721931060897,-500.0,0.0001452,2]
[333191394,1721931060908,-636.87,0.0001452,2]
[333191395,1721931060921,-500.0,0.0001452,2]
[333191396,1721931060931,-500.0,0.0001452,2]
[333191397,1721931060940,-500.0,0.0001452,2]
[333191398,1721931060949,-500.0,0.0001452,2]
[333191399,1721931060959,-500.0,0.0001452,2]
[333191400,1721931060968,-500.0,0.0001452,2]
[333191401,1721931060977,-500.0,0.0001452,2]
[333191402,1721931060986,-500.0,0.0001452,2]
[333191403,1721931060995,-500.0,0.0001452,2]
[333191404,1721931061004,-500.0,0.0001452,2]
[333191405,1721931061014,-500.0,0.0001452,2]
[333191406,1721931061023,-401.57602234,0.0001452,2]
[333191407,1721931061033,-500.0,0.0001452,2]
[333191408,1721931061042,-500.0,0.0001452,2]
[333191409,1721931061052,-500.0,0.0001452,2]
[333191410,1721931061061,-500.0,0.0001452,2]
[333191411,1721931061070,-500.0,0.0001452,2]
[333191412,1721931061079,-500.0,0.0001452,2]
[333191413,1721931061089,-500.0,0.0001452,2]
[333191414,1721931061098,-500.0,0.0001452,2]
[333191415,1721931061107,-500.0,0.0001452,2]
[333191416,1721931061117,-500.0,0.0001452,2]
[333191417,1721931061127,-500.0,0.0001452,2]
[333191418,1721931061137,-500.0,0.0001452,2]
[333191419,1721931061146,-500.0,0.0001452,2]
[333191420,1721931061158,-500.0,0.0001452,2]
[333191421,1721931061167,-500.0,0.0001452,2]
[333191422,1721931061176,-500.0,0.0001452,2]
[333191423,1721931061186,-500.0,0.0001452,2]
[333191424,1721931061195,-500.0,0.0001452,2]
[333191425,1721931061204,-500.0,0.0001452,2]
[333191426,1721931061214,-976.36109,0.0001452,2]
[333191427,1721931061223,-1404.48,0.0001452,2]
[333191428,1721931061232,-500.0,0.0001452,2]
[333191429,1721931061242,-537.54,0.0001452,2]
[333191430,1721931061251,-976.36109,0.0001452,2]
[333191431,1721931061261,-500.0,0.0001452,2]
[333191432,1721931061271,-500.0,0.0001452,2]
[333191433,1721931061280,-500.0,0.0001452,2]
[333191434,1721931061290,-500.0,0.0001452,2]
[333191435,1721931061300,-500.0,0.0001452,2]
[333191436,1721931061310,-500.0,0.0001452,2]
[333191437,1721931061320,-1350.15,0.0001452,2]
[333191438,1721931061329,-702.81,0.0001452,2]
[333191439,1721931061339,-500.0,0.0001452,2]
[333191440,1721931061349,-500.0,0.0001452,2]
[333191441,1721931061359,-500.0,0.0001452,2]
[333191442,1721931061368,-500.0,0.0001452,2]
[333191443,1721931061378,-500.0,0.0001452,2]
[333191444,1721931061387,-500.0,0.0001452,2]
[333191445,1721931061397,-1436.96,0.0001452,2]
[333191446,1721931061410,-500.0,0.0001452,2]
[333191447,1721931061419,-500.0,0.0001452,2]
[333191448,1721931061428,-2147.47,0.0001452,2]
[333191449,1721931061437,-500.0,0.0001452,2]
[333191450,1721931061446,-524.74,0.0001452,2]
[333191451,1721931061455,-806.95,0.0001452,2]
[333191452,1721931061464,-500.0,0.0001452,2]
[333191453,1721931061473,-679.12,0.0001452,2]
[333191454,1721931061481,-653.27,0.0001452,2]
[333191455,1721931061490,-500.0,0.0001452,2]
[333191456,1721931061499,-500.0,0.0001452,2]
[333191457,1721931061509,-199.48195712,0.0001452,2]
[333191458,1721931061519,-500.0,0.0001452,2]
[333191459,1721931061528,-739.79,0.0001452,2]
[333191460,1721931061537,-500.0,0.0001452,2]
[333191461,1721931061547,-958.15,0.0001452,2]
[333191462,1721931061556,-320.504912,0.0001452,2]
[333191463,1721931061565,-320.504912,0.0001452,2]
[333191464,1721931061575,-500.0,0.0001452,2]
[333191465,1721931061584,-1009.46,0.0001452,2]
[333191466,1721931061593,-500.0,0.0001452,2]
[333191467,1721931061603,-500.0,0.0001452,2]
[333191468,1721931061613,-602.31,0.0001452,2]
[333191469,1721931061623,-876.72,0.0001452,2]
[333191470,1721931061633,-500.0,0.0001452,2]
[333191471,1721931061642,-663.6,0.0001452,2]
[333191472,1721931061651,-500.0,0.0001452,2]
[333191473,1721931061665,-500.0,0.0001452,2]
[333191474,1721931061675,-500.0,0.0001452,2]
[333191475,1721931061685,-500.0,0.0001452,2]
[333191476,1721931061694,-370.12395079,0.0001452,2]
[333191477,1721931061703,-500.0,0.0001452,2]
[333191478,1721931061713,-628.42,0.0001452,2]
[333191479,1721931061722,-695.74,0.0001452,2]
[333191480,1721931061733,-500.0,0.0001452,2]
[333191481,1721931061743,-500.0,0.0001452,2]
[333191482,1721931061752,-153.77303456,0.0001452,2]
[333191483,1721931061761,-1249.69,0.0001452,2]
[333191484,1721931061771,-500.0,0.0001452,2]
[333191485,1721931061884,-500.0,0.0001452,2]
[333191486,1721931061911,-500.0,0.0001452,2]
[333191487,1721931061921,-500.0,0.0001452,2]
[333191488,1721931061930,-493.88105072,0.0001452,2]
[333191489,1721931061939,-819.19,0.0001452,2]
[333191490,1721931061948,-500.0,0.0001452,2]
[333191491,1721931061958,-1308.36,0.0001452,2]
[333191492,1721931061967,-1310.28,0.0001452,2]
[333191493,1721931061976,-927.14,0.0001452,2]
[333191494,1721931061986,-500.0,0.0001452,2]
[333191495,1721931061995,-844.66,0.0001452,2]
[333191496,1721931062005,-588.69,0.0001452,2]
[333191497,1721931062015,-1561.37,0.0001452,2]
[333191498,1721931062024,-500.0,0.0001452,2]
[333191499,1721931062033,-792.7,0.0001452,2]
[333191500,1721931062043,-778.19,0.0001452,2]
[333191501,1721931062052,-500.0,0.0001452,2]
[333191502,1721931062061,-1207.85,0.0001452,2]
[333191503,1721931062071,-637.6,0.0001452,2]
[333191504,1721931062081,-500.0,0.0001452,2]
[333191505,1721931062092,-500.0,0.0001452,2]
[333191506,1721931062101,-500.0,0.0001452,2]
[333191507,1721931062111,-1245.58,0.0001452,2]
[333191508,1721931062121,-500.0,0.0001452,2]
[333191509,1721931062131,-518.46527194,0.0001452,2]
[333191510,1721931062141,-519.08,0.0001452,2]
[333191511,1721931062151,-500.0,0.0001452,2]
[333191512,1721931062165,-565.87,0.0001452,2]
[333191513,1721931062175,-500.0,0.0001452,2]
[333191514,1721931062185,-500.0,0.0001452,2]
[333191515,1721931062198,-500.0,0.0001452,2]
[333191516,1721931062207,-650.68,0.0001452,2]
[333191517,1721931062217,-500.0,0.0001452,2]
[333191518,1721931062227,-500.0,0.0001452,2]
[333191519,1721931062237,-500.0,0.0001452,2]
[333191520,1721931062247,-533.67,0.0001452,2]
[333191521,1721931062257,-500.0,0.0001452,2]
[333191522,1721931062267,-1169.62,0.0001452,2]
[333191523,1721931062276,-536.23,0.0001452,2]
[333191524,1721931062286,-530.02,0.0001452,2]
[333191525,1721931062296,-934.43,0.0001452,2]
[333191526,1721931062306,-151.0,0.0001452,2]
[333191527,1721931062315,-1064.49,0.0001452,2]
[333191528,1721931062325,-500.0,0.0001452,2]
[333191529,1721931062335,-500.0,0.0001452,2]
[333191530,1721931062345,-1150.44,0.0001452,2]
[333191531,1721931062354,-500.0,0.0001452,2]
[333191532,1721931062363,-847.0,0.0001452,2]
[333191533,1721931062373,-500.0,0.0001452,2]
[333191534,1721931062382,-791.4,0.0001452,2]
[333191535,1721931062391,-500.0,0.0001452,2]
[333191536,1721931062400,-1018.83,0.0001452,2]
[333191537,1721931062413,-331.28129,0.0001452,2]
[333191538,1721931062422,-500.0,0.0001452,2]
[333191539,1721931062432,-331.28129,0.0001452,2]
[333191540,1721931062442,-500.0,0.0001452,2]
[333191541,1721931062452,-830.85,0.0001452,2]
[333191542,1721931062461,-500.0,0.0001452,2]
[333191543,1721931062471,-1102.94,0.0001452,2]
[333191544,1721931062480,-765.27,0.0001452,2]
[333191545,1721931062490,-151.0,0.0001452,2]
[333191546,1721931062499,-1019.86,0.0001452,2]
[333191547,1721931062508,-151.0,0.0001452,2]
[333191548,1721931062517,-500.0,0.0001452,2]
[333191549,1721931062526,-533.79,0.0001452,2]
[333191550,1721931062536,-867.66,0.0001452,2]
[333191551,1721931062545,-500.0,0.0001452,2]
[333191552,1721931062555,-604.75,0.0001452,2]
[333191553,1721931062565,-521.26,0.0001452,2]
[333191554,1721931062574,-2199.43,0.0001452,2]
[333191555,1721931062584,-151.0,0.0001452,2]
[333191556,1721931062593,-500.0,0.0001452,2]
[333191557,1721931062603,-500.0,0.0001452,2]
[333191558,1721931062614,-500.0,0.0001452,2]
[333191559,1721931062623,-826.53,0.0001452,2]
[333191560,1721931062633,-2013.94,0.0001452,2]
[333191561,1721931062642,-1897.6,0.0001452,2]
[333191562,1721931062652,-500.0,0.0001452,2]
[333191563,1721931062664,-500.0,0.0001452,2]
[333191564,1721931062673,-1006.17,0.0001452,2]
[333191565,1721931062682,-500.0,0.0001452,2]
[333191566,1721931062692,-1006.87,0.0001452,2]
[333191567,1721931062704,-1774.58,0.0001452,2]
[333191568,1721931062714,-2659.08,0.0001452,2]
[333191569,1721931062725,-151.0,0.0001452,2]
[333191570,1721931062734,-1517.91,0.0001452,2]
[333191571,1721931062743,-500.0,0.0001452,2]
[333191572,1721931062753,-2835.69,0.0001452,2]
[333191573,1721931062762,-372.862802,0.0001452,2]
[333191574,1721931062772,-694.9,0.0001452,2]
[333191575,1721931062782,-372.862802,0.0001452,2]
[333191576,1721931062791,-500.0,0.0001452,2]
[333191577,1721931062801,-151.0,0.0001452,2]
[333191578,1721931062810,-500.0,0.0001452,2]
[333191579,1721931062819,-500.0,0.0001452,2]
[333191580,1721931062829,-500.0,0.0001452,2]
[333191581,1721931062842,-995.23,0.0001452,2]
[333191582,1721931062852,-1627.17,0.0001452,2]
[333191583,1721931062862,-864.05,0.0001452,2]
[333191584,1721931062871,-500.0,0.0001452,2]
[333191585,1721931062882,-10076.05,0.0001452,2]
[333191586,1721931062891,-500.0,0.0001452,2]
[333191587,1721931062901,-500.0,0.0001452,2]
[333191588,1721931062913,-4258.11,0.0001452,2]
[333191589,1721931062923,-500.0,0.0001452,2]
[333191590,1721931062932,-500.0,0.0001452,2]
[333191591,1721931062941,-6811.63,0.0001452,2]
[333191592,1721931062950,-787.92,0.0001452,2]
[333191593,1721931062960,-1908.57,0.0001452,2]
[333191594,1721931062969,-500.0,0.0001452,2]
[333191595,1721931062979,-1810.53,0.0001452,2]
[333191596,1721931062988,-500.0,0.0001452,2]
[333191597,1721931062998,-1030.22,0.0001452,2]
[333191598,1721931063008,-1383.61,0.0001452,2]
[333191599,1721931063017,-502.74,0.0001452,2]
[333191600,1721931063027,-500.0,0.0001452,2]
[333191601,1721931063037,-1700.32,0.0001452,2]
[333191602,1721931063047,-500.0,0.0001452,2]
[333191603,1721931063056,-8543.81,0.0001452,2]
[333191604,1721931063066,-500.0,0.0001452,2]
[333191605,1721931063076,-500.0,0.0001452,2]
[333191606,1721931063087,-500.0,0.0001452,2]
[333191607,1721931063097,-500.0,0.0001452,2]
[333191608,1721931063106,-500.0,0.0001452,2]
[333191609,1721931063116,-500.0,0.0001452,2]
[333191610,1721931063126,-151.0,0.0001452,2]
[333191611,1721931063136,-151.0,0.0001452,2]
[333191612,1721931063146,-887.29,0.0001452,2]
[333191613,1721931063158,-500.0,0.0001452,2]
[333191614,1721931063167,-500.0,0.0001452,2]
[333191615,1721931063177,-500.0,0.0001452,2]
[333191616,1721931063187,-1106.02,0.0001452,2]
[333191617,1721931063196,-196.34668778,0.0001452,2]
[333191618,1721931063206,-500.0,0.0001452,2]
[333191619,1721931063216,-500.0,0.0001452,2]
[333191620,1721931063226,-1814.13,0.0001452,2]
[333191621,1721931063236,-672.42,0.0001452,2]
[333191622,1721931063246,-616.66,0.0001452,2]
[333191623,1721931063256,-784.77,0.0001452,2]
[333191624,1721931063265,-181.20532155,0.0001452,2]
[333191625,1721931063275,-909.05,0.0001452,2]
[333191626,1721931063284,-983.58,0.0001452,2]
[333191627,1721931063295,-4954.07,0.0001452,2]
[333191628,1721931063304,-200.4750773,0.0001452,2]
[333191629,1721931063313,-1328.52,0.0001452,2]
[333191630,1721931063323,-500.0,0.0001452,2]
[333191631,1721931063333,-1406.23,0.0001452,2]
[333191632,1721931063342,-500.0,0.0001452,2]
[333191633,1721931063352,-500.0,0.0001452,2]
[333191634,1721931063362,-872.91,0.0001452,2]
[333191635,1721931063371,-1478.62,0.0001452,2]
[333191636,1721931063381,-1562.6,0.0001452,2]
[333191637,1721931063391,-500.0,0.0001452,2]
[333191638,1721931063401,-151.0,0.0001452,2]
[333191639,1721931063415,-739.37,0.0001452,2]
[333191640,1721931063424,-500.0,0.0001452,2]
[333191641,1721931063434,-151.0,0.0001452,2]
[333191642,1721931063443,-3164.36,0.0001452,2]